bitfinex/quotes_BTCUSD_20251215
["timestamp","ask_amount","ask_price","bid_price","bid_amount"]
[1765830279959,0.0004,85923.0,85922.0,0.34972925]
[1765830280154,0.0004,85923.0,85922.0,0.69044764]
[1765830280356,0.0004,85923.0,85922.0,0.69544764]
[1765830280557,0.0004,85923.0,85922.0,0.68744764]
[1765830280936,0.0004,85923.0,85922.0,0.69644764]
[1765830281147,0.0004,85923.0,85922.0,0.69044764]
[1765830281348,0.0004,85936.0,85935.0,0.23273404]
[1765830281554,0.0004,85936.0,85935.0,0.66837243]
[1765830281888,0.0004,85936.0,85935.0,0.74201243]
[1765830282298,0.00985677,85941.0,85940.0,0.57343889]
[1765830282505,0.00985677,85941.0,85940.0,0.62151889]
[1765830282707,0.00985677,85941.0,85940.0,0.69515889]
[1765830283470,0.00985677,85941.0,85940.0,0.70115889]
[1765830283894,0.00985677,85941.0,85940.0,0.69515889]
[1765830284112,0.00985677,85941.0,85940.0,0.70115889]
[1765830284313,0.0004,85966.0,85940.0,0.70115889]
[1765830284314,0.0004,85966.0,85964.0,0.57337392]
[1765830284471,0.0004,85966.0,85965.0,0.43990367]
[1765830284676,0.0004,85966.0,85965.0,0.50875839]
[1765830285629,0.0004,85966.0,85965.0,0.51275839]
[1765830286837,0.0004,85966.0,85965.0,0.44026]
[1765830287037,0.0004,85966.0,85965.0,0.45874]
[1765830287250,0.0004,85966.0,85965.0,0.46274]
[1765830287474,0.0004,85966.0,85965.0,0.46774]
[1765830287679,0.0004,85966.0,85965.0,0.46374]
[1765830288008,0.0004,85966.0,85965.0,0.17204]
[1765830288230,0.00201287,85966.0,85965.0,0.02748]
[1765830288442,0.00201287,85966.0,85965.0,0.02348]
[1765830288865,0.00201287,85966.0,85965.0,0.1482]
[1765830289783,0.00201287,85966.0,85965.0,0.02648]
[1765830289997,0.00201287,85966.0,85965.0,0.02148]
[1765830290201,0.23466298,85966.0,85965.0,0.003]
[1765830290407,0.23466298,85966.0,85965.0,0.008]
[1765830290610,0.23466298,85966.0,85958.0,0.01163358]
[1765830290611,0.24429662,85962.0,85959.0,0.01163345]
[1765830290819,0.04925733,85962.0,85959.0,0.01163345]
[1765830291000,0.01163291,85963.0,85960.0,0.24429962]
[1765830291224,0.01163331,85960.0,85956.0,0.24431]
[1765830291434,0.23267176,85958.0,85955.0,0.01163399]
[1765830291767,0.24430005,85960.0,85957.0,0.24430814]
[1765830291979,0.23268259,85954.0,85953.0,0.03]
[1765830292188,0.23267989,85955.0,85953.0,0.03]
[1765830292397,0.23268259,85954.0,85953.0,0.03]
[1765830292599,0.23267989,85955.0,85953.0,0.03]
[1765830293004,0.23268259,85954.0,85953.0,0.03]
[1765830293427,0.2443056,85958.0,85954.0,0.24431671]
[1765830293612,0.01163318,85961.0,85956.0,0.01163385]
[1765830293847,0.01163331,85960.0,85957.0,0.01163372]
[1765830294058,0.24429994,85960.0,85957.0,0.01163372]
[1765830294281,0.01163358,85958.0,85954.0,0.01163412]
[1765830294482,0.01163385,85956.0,85953.0,0.032]
[1765830294686,0.23267989,85955.0,85954.0,0.03649]
[1765830294836,0.01163385,85956.0,85954.0,0.03649]
[1765830295111,0.01163385,85956.0,85953.0,0.03]
[1765830295112,0.23267989,85955.0,85953.0,0.03]
[1765830295409,0.39875374,85954.0,85953.0,0.03]
[1765830295563,0.75984374,85954.0,85953.0,0.03]
[1765830295968,0.64351259,85954.0,85953.0,0.03]
[1765830296222,0.70165238,85954.0,85953.0,0.031]
[1765830296424,0.70165238,85954.0,85953.0,0.01432914]
[1765830296716,0.70165238,85954.0,85917.0,0.01163914]
[1765830296717,0.23277467,85920.0,85919.0,0.01848]
[1765830297351,0.01163805,85925.0,85919.0,0.01848]
[1765830297564,0.75606327,85955.0,85919.0,0.01848]
[1765830297565,1.0,85982.0,85972.0,0.05594]
[1765830297768,1.0,85983.0,85982.0,0.34071839]
[1765830297987,1.0,85983.0,85982.0,0.36868839]
[1765830298210,0.0004,85989.0,85983.0,0.5733225]
[1765830298435,0.0004,85989.0,85983.0,0.6292625]
[1765830299107,0.0004,85989.0,85983.0,0.52330411]
[1765830299307,0.0004,85989.0,85983.0,0.57924411]
[1765830299532,0.0004,85989.0,85983.0,0.52330411]
[1765830300371,0.0004,85989.0,85983.0,0.52730411]
[1765830300585,0.0004,85989.0,85983.0,0.23660411]
[1765830301198,0.0004,85989.0,85983.0,0.29554411]
[1765830301553,0.0004,85989.0,85983.0,0.6362625]
[1765830302294,0.0004,85989.0,85983.0,0.26757411]
[1765830302559,0.0004,85989.0,85983.0,0.25512411]
[1765830302742,0.0004,85989.0,85983.0,0.28309411]
[1765830303099,0.0004,85989.0,85983.0,0.25612411]
[1765830303294,0.0004,85989.0,85983.0,0.01852]
[1765830303295,0.24422716,85986.0,85983.0,0.01852]
[1765830303498,0.24425018,85978.0,85974.0,0.24425918]
[1765830303739,0.00161287,85978.0,85976.0,0.23262144]
[1765830303949,0.00161287,85978.0,85976.0,0.23262244]
[1765830305127,0.01203007,85984.0,85975.0,0.24425406]
[1765830305128,0.0004,85984.0,85983.0,0.23260411]
[1765830305317,0.0004,85984.0,85983.0,0.26057411]
[1765830305599,0.0004,85984.0,85983.0,0.23260411]
[1765830306433,0.0004,85984.0,85983.0,0.23360411]
[1765830306837,0.0004,85984.0,85983.0,0.23560411]
[1765830307819,0.0004,85984.0,85983.0,0.003]
[1765830309636,0.0004,85984.0,85982.0,0.23260527]
[1765830309824,0.0004,85984.0,85983.0,0.001]
[1765830310048,0.0004,85984.0,85983.0,0.002]
[1765830311300,0.0004,85984.0,85983.0,0.001]
[1765830311473,0.0004,85984.0,85983.0,0.02897]
[1765830311935,0.0004,85984.0,85983.0,0.05694]
[1765830312212,0.0004,85984.0,85983.0,0.07920041]
[1765830312599,0.0004,85984.0,85983.0,0.08120041]
[1765830312757,0.0004,85984.0,85983.0,0.08020041]
[1765830312956,0.0004,85984.0,85983.0,0.31280452]
[1765830313156,0.0004,85984.0,85983.0,0.29454411]
[1765830314050,0.0004,85984.0,85983.0,0.58024411]
[1765830314254,0.0004,85984.0,85983.0,0.6332625]
[1765830314976,0.0004,85984.0,85983.0,0.6362625]
[1765830315402,0.0004,85984.0,85983.0,0.6332625]
[1765830315617,0.0004,85984.0,85983.0,0.6062925]
[1765830315816,0.0004,85984.0,85983.0,0.6403325]
[1765830316793,0.00025603,85984.0,85983.0,0.6403325]
[1765830318804,0.34704744,85984.0,85983.0,0.011]
[1765830319018,0.34866031,85984.0,85983.0,0.011]
[1765830319247,0.23447031,85984.0,85983.0,0.011]
[1765830319705,0.23447031,85984.0,85983.0,0.005]
[1765830319953,0.23447031,85984.0,85983.0,0.008]
[1765830320392,0.23447031,85984.0,85983.0,0.003]
[1765830320664,0.23447031,85984.0,85983.0,0.005]
[1765830321245,0.0018689,85984.0,85983.0,0.005]
[1765830321647,0.23447031,85984.0,85983.0,0.005]
[1765830322240,0.34866031,85984.0,85983.0,0.005]
[1765830322823,0.4068001,85984.0,85983.0,0.005]
[1765830323022,0.34866031,85984.0,85983.0,0.005]
[1765830323228,0.23263658,85971.0,85970.0,0.00099999]
[1765830323433,0.23265282,85965.0,85964.0,0.01852]
[1765830324462,0.01163223,85968.0,85964.0,0.01852]
[1765830324658,0.23265282,85965.0,85964.0,0.01852]
[1765830325204,0.23265282,85965.0,85964.0,0.02052]
[1765830325428,0.23265159,85966.0,85964.0,0.02052]
[1765830325828,0.23265282,85965.0,85964.0,0.02052]
[1765830326238,0.01163237,85967.0,85964.0,0.02352]
[1765830326374,0.24427742,85968.0,85965.0,0.23265279]
[1765830326574,0.01163223,85968.0,85965.0,0.24428543]
[1765830326777,0.24426371,85973.0,85968.0,0.01163223]
[1765830327159,0.01163155,85973.0,85970.0,0.23263885]
[1765830327490,0.01163209,85969.0,85964.0,0.02052]
[1765830327733,0.04664,85965.0,85964.0,0.02052]
[1765830327916,0.04664,85965.0,85964.0,0.005]
[1765830327917,0.33443006,85965.0,85964.0,0.005]
[1765830328095,0.33443006,85965.0,85960.0,0.00099999]
[1765830328096,0.23266364,85961.0,85960.0,0.00099999]
[1765830328293,0.01163426,85953.0,85950.0,0.00099999]
[1765830328475,0.23269071,85951.0,85950.0,0.00099999]
[1765830329547,0.03605,85955.0,85952.0,0.23268751]
[1765830329548,0.28036645,85955.0,85952.0,0.23268751]
[1765830329749,0.23268296,85954.0,85951.0,0.24432451]
[1765830329950,0.24431708,85954.0,85950.0,0.00099999]
[1765830330152,0.24431708,85954.0,85950.0,0.00299999]
[1765830330355,0.23269071,85951.0,85950.0,0.00299999]
[1765830330553,0.01163304,85962.0,85950.0,0.00399998]
[1765830330759,0.24431656,85955.0,85952.0,0.23268718]
[1765830331138,0.24431656,85955.0,85952.0,0.24432158]
[1765830331139,0.01163399,85955.0,85952.0,0.24432158]
[1765830331342,0.23266901,85960.0,85952.0,0.2443197]
[1765830331538,0.06146902,85991.0,85950.0,0.00399998]
[1765830331539,0.25,85970.0,85963.0,0.01163291]
[1765830331860,0.01163155,85973.0,85968.0,0.24427645]
[1765830332193,0.01163182,85971.0,85967.0,0.01163237]
[1765830332402,0.01163128,85975.0,85960.0,0.95934511]
[1765830332403,0.01163061,85980.0,85975.0,0.01163128]
[1765830332592,0.0004,85989.0,85972.0,0.02804]
[1765830332593,0.01163088,85978.0,85972.0,0.02804]
[1765830332881,0.23263658,85971.0,85970.0,0.00099999]
[1765830333240,0.24426272,85973.0,85970.0,0.00099999]
[1765830333446,0.23263658,85971.0,85970.0,0.00099999]
[1765830334280,0.23263457,85972.0,85970.0,0.00099999]
[1765830335086,0.23263457,85972.0,85936.0,0.03118701]
[1765830335087,0.27859658,85971.0,85936.0,0.03118701]
[1765830335287,0.01163412,85954.0,85952.0,0.01852]
[1765830335486,0.24431613,85955.0,85952.0,0.26283978]
[1765830335886,0.0338,85964.0,85953.0,0.01163426]
[1765830336101,0.01163264,85965.0,85960.0,0.00099999]
[1765830336411,0.24429461,85962.0,85960.0,0.00199998]
[1765830336608,0.01163304,85962.0,85960.0,0.23466584]
[1765830336808,0.23265774,85964.0,85960.0,0.0126333]
[1765830337358,0.07665979,85981.0,85960.0,0.0126333]
[1765830337359,0.24425966,85975.0,85972.0,0.01163169]
[1765830337514,0.01163088,85978.0,85973.0,0.01163155]
[1765830337717,0.01163101,85977.0,85972.0,0.01163169]
[1765830337918,0.23263305,85973.0,85970.0,0.23363884]
[1765830338126,0.23262349,85976.0,85972.0,0.01163169]
[1765830338481,0.01163101,85977.0,85974.0,0.23262646]
[1765830338709,0.24425305,85977.0,85973.0,0.2442627]
[1765830338924,0.01163142,85974.0,85971.0,0.01163182]
[1765830339130,0.01163101,85977.0,85972.0,0.01163169]
[1765830339261,0.2326256,85976.0,85972.0,0.2442653]
[1765830339461,0.2326256,85976.0,85973.0,0.23263032]
[1765830339659,0.2326256,85976.0,85973.0,0.24426187]
[1765830339862,0.24425675,85976.0,85973.0,0.24426187]
[1765830340073,0.01163101,85977.0,85974.0,0.24425935]
[1765830340344,0.24424867,85978.0,85974.0,0.24425967]
[1765830340721,0.23262136,85977.0,85974.0,0.24425967]
[1765830341332,0.24424867,85978.0,85975.0,0.23262538]
[1765830341852,0.01163088,85978.0,85976.0,0.23262289]
[1765830342055,0.24424888,85978.0,85975.0,0.24425666]
[1765830342284,0.24424888,85978.0,85971.0,0.01163182]
[1765830342285,0.24424838,85979.0,85965.0,0.01163264]
[1765830342479,0.01163128,85975.0,85972.0,0.23263332]
[1765830342712,0.01163128,85975.0,85970.0,0.00099999]
[1765830342884,0.24425735,85975.0,85972.0,0.23263163]
[1765830343101,0.24425469,85976.0,85973.0,0.23263079]
[1765830343251,0.24425469,85976.0,85973.0,0.23802234]
[1765830343448,0.01162993,85985.0,85979.0,0.01163074]
[1765830343680,0.01162993,85985.0,85981.0,0.2326073]
[1765830343681,0.24423078,85985.0,85981.0,0.2326073]
[1765830343850,0.24610185,85984.0,85981.0,0.24423777]
[1765830344080,0.23261595,85979.0,85977.0,0.01163101]
[1765830344263,0.24424551,85980.0,85977.0,0.24425079]
[1765830344660,0.2442402,85981.0,85978.0,0.24424844]
[1765830344861,0.01163034,85982.0,85979.0,0.24424484]
[1765830345150,0.23260955,85981.0,85979.0,0.24424484]
[1765830345351,0.24425098,85978.0,85977.0,0.001]
[1765830345576,0.23262295,85977.0,85973.0,0.26277743]
[1765830345768,0.24425637,85976.0,85973.0,0.26277743]
[1765830346215,0.24425637,85976.0,85973.0,0.01852]
[1765830346216,0.23262685,85975.0,85973.0,0.01852]
[1765830346421,0.01163291,85963.0,85960.0,0.00099999]
[1765830346659,0.24429398,85962.0,85961.0,0.01852]
[1765830347066,0.24429398,85962.0,85937.0,0.49664219]
[1765830347067,0.24433138,85949.0,85946.0,0.23270184]
[1765830347285,0.0116344,85952.0,85948.0,0.24433132]
[1765830347478,0.01163453,85951.0,85947.0,0.01852]
[1765830347687,0.24432843,85950.0,85947.0,0.01852]
[1765830347924,0.23269884,85948.0,85947.0,0.01852]
[1765830348749,0.23269884,85948.0,85947.0,0.02152]
[1765830349137,0.23269884,85948.0,85947.0,0.02352]
[1765830349329,0.23269884,85948.0,85947.0,0.005]
[1765830349580,0.23269867,85949.0,85947.0,0.005]
[1765830349779,0.24432604,85951.0,85948.0,0.23269637]
[1765830350011,0.24432604,85951.0,85948.0,0.24433131]
[1765830350214,0.01163453,85951.0,85949.0,0.23269568]
[1765830350486,0.01163453,85951.0,85949.0,0.23269596]
[1765830350638,0.01163453,85951.0,85948.0,0.24433131]
[1765830350833,0.01163453,85951.0,85949.0,0.23269608]
[1765830351132,0.24432272,85952.0,85949.0,0.23269608]
[1765830351133,0.0116344,85952.0,85950.0,0.23269243]
[1765830351332,0.0116344,85952.0,85949.0,0.24533088]
[1765830351550,0.0116344,85952.0,85950.0,0.23269337]
[1765830351762,0.23269342,85950.0,85949.0,0.001]
[1765830352324,0.23269342,85950.0,85949.0,0.002]
[1765830352486,0.23269342,85950.0,85949.0,0.001]
[1765830352907,0.23270038,85948.0,85945.0,0.26286202]
[1765830353092,0.23270425,85946.0,85945.0,0.01852]
[1765830353498,0.23274487,85931.0,85929.0,0.02804]
[1765830353704,0.01163656,85936.0,85930.0,0.00099999]
[1765830353912,0.23274487,85931.0,85930.0,0.00099999]
[1765830354256,0.24439379,85927.0,85922.0,0.01163846]
[1765830354474,0.23275305,85928.0,85925.0,0.01163805]
[1765830354693,0.24438509,85930.0,85927.0,0.23275311]
[1765830354926,0.24438509,85930.0,85926.0,0.01163792]
[1765830354927,0.01163737,85930.0,85926.0,0.01163792]
[1765830355198,0.01163778,85927.0,85924.0,0.01852]
[1765830355493,0.24439593,85927.0,85924.0,0.01852]
[1765830355715,0.24439118,85928.0,85925.0,0.001]
[1765830356205,0.23275591,85927.0,85925.0,0.001]
[1765830356420,0.24439118,85928.0,85925.0,0.001]
[1765830356829,0.23275842,85926.0,85925.0,0.001]
[1765830357029,0.24439118,85928.0,85925.0,0.23376067]
[1765830357668,0.23275615,85927.0,85925.0,0.001]
[1765830357870,0.24439118,85928.0,85925.0,0.23376096]
[1765830358223,0.24439118,85928.0,85925.0,0.23476096]
[1765830358439,0.24439118,85928.0,85925.0,0.002]
[1765830358790,0.01163765,85928.0,85925.0,0.24639916]
[1765830358995,0.23275842,85926.0,85925.0,0.001]
[1765830359218,0.01163765,85928.0,85925.0,0.01363805]
[1765830359471,0.01163765,85928.0,85925.0,0.01263805]
[1765830359682,0.23275842,85926.0,85925.0,0.001]
[1765830359833,0.23275842,85926.0,85925.0,0.002]
[1765830360037,0.23275842,85926.0,85925.0,0.001]
[1765830360234,0.06270954,85926.0,85925.0,0.001]
[1765830360436,0.06270954,85926.0,85925.0,0.002]
[1765830360633,0.06270954,85926.0,85925.0,0.001]
[1765830360839,0.0338,85943.0,85932.0,0.0116371]
[1765830361016,0.23271072,85944.0,85938.0,0.01163629]
[1765830361218,0.24432553,85951.0,85947.0,0.01163507]
[1765830361435,0.01163453,85951.0,85948.0,0.01163494]
[1765830361638,0.01163453,85951.0,85947.0,0.01163507]
[1765830361639,0.24430838,85957.0,85952.0,0.0116344]
[1765830361863,0.24430667,85958.0,85952.0,0.24432179]
[1765830362197,0.01163507,85947.0,85944.0,0.03015548]
[1765830362390,0.23270696,85945.0,85944.0,0.01852]
[1765830363489,0.08560453,85951.0,85946.0,0.23270323]
[1765830363490,0.01163467,85950.0,85946.0,0.23270323]
[1765830363693,0.01163494,85948.0,85944.0,0.02152]
[1765830363913,0.23270696,85945.0,85944.0,0.01852]
[1765830364120,0.27991696,85945.0,85944.0,0.01852]
[1765830364515,0.27891696,85945.0,85944.0,0.01952]
[1765830364669,0.27891696,85945.0,85944.0,0.001]
[1765830365082,0.23271769,85942.0,85940.0,0.00199998]
[1765830365291,0.01163453,85951.0,85944.0,0.02904]
[1765830365609,0.23270696,85945.0,85944.0,0.001]
[1765830365816,0.23270696,85945.0,85944.0,0.003]
[1765830366029,0.23270696,85945.0,85944.0,0.001]
[1765830366030,0.35549983,85945.0,85944.0,0.001]
[1765830366405,0.28152983,85945.0,85944.0,0.001]
[1765830366642,0.01163561,85943.0,85940.0,0.00199998]
[1765830366972,0.23271779,85941.0,85940.0,0.00199999]
[1765830367386,0.23431983,85945.0,85941.0,0.01163588]
[1765830367387,0.24595556,85945.0,85941.0,0.01163588]
[1765830367578,0.00161287,85945.0,85944.0,0.23370967]
[1765830367920,0.00161287,85945.0,85944.0,0.001]
[1765830368125,0.24432524,85951.0,85950.0,0.00099999]
[1765830368502,0.01163561,85943.0,85940.0,0.00099999]
[1765830368788,0.01163467,85950.0,85946.0,0.23270425]
[1765830369006,0.01163507,85947.0,85943.0,0.24434557]
[1765830369409,0.0116348,85949.0,85946.0,0.01163521]
[1765830369607,0.0116348,85949.0,85947.0,0.23270154]
[1765830369608,0.24433152,85949.0,85947.0,0.23270154]
[1765830369991,0.24433152,85949.0,85946.0,0.24433864]
[1765830370189,0.01163494,85948.0,85945.0,0.04852534]
[1765830370545,0.01163467,85950.0,85946.0,0.01163521]
[1765830370784,0.23269318,85951.0,85948.0,0.24433204]
[1765830370973,0.23270413,85947.0,85945.0,0.03689]
[1765830371179,0.23270425,85946.0,85945.0,0.03689]
[1765830371315,0.23270425,85946.0,85945.0,0.03789]
[1765830372181,0.24433113,85949.0,85945.0,0.03789]
[1765830372387,0.01163494,85948.0,85945.0,0.05052534]
[1765830372590,0.01163494,85948.0,85945.0,0.28323216]
[1765830372839,0.23268029,85955.0,85948.0,0.23269884]
[1765830372840,0.24432274,85952.0,85948.0,0.23269884]
[1765830373042,0.52336921,85959.0,85948.0,0.23269884]
[1765830373043,0.01163318,85961.0,85955.0,0.01163399]
[1765830373243,0.01163331,85960.0,85957.0,0.23267195]
[1765830373445,0.01163209,85969.0,85960.0,0.05108998]
[1765830373646,0.2326526,85966.0,85962.0,0.24429138]
[1765830373851,0.0116325,85966.0,85961.0,0.04909]
[1765830374058,0.23266086,85963.0,85961.0,0.04909]
[1765830374257,0.23266364,85961.0,85960.0,0.00261286]
[1765830374693,0.23266364,85961.0,85960.0,0.05170286]
[1765830374961,0.23266354,85962.0,85960.0,0.05170286]
[1765830375167,0.23266354,85962.0,85961.0,0.001]
[1765830375311,0.24429153,85963.0,85960.0,0.05170286]
[1765830375515,0.23266364,85961.0,85960.0,0.05370286]
[1765830375719,0.23266123,85962.0,85960.0,0.05370286]
[1765830375919,0.23266123,85962.0,85960.0,0.05170286]
[1765830376119,0.23265841,85963.0,85960.0,0.28636909]
[1765830376319,0.23266364,85961.0,85960.0,0.05370286]
[1765830376523,0.23266136,85962.0,85960.0,0.05370286]
[1765830376781,0.23266364,85961.0,85960.0,0.00461286]
[1765830377188,0.0338,85980.0,85968.0,0.01163223]
[1765830377390,0.01163088,85978.0,85972.0,0.01163169]
[1765830377599,0.01163088,85978.0,85972.0,0.24426487]
[1765830377600,0.23262561,85976.0,85972.0,0.24426487]
[1765830377750,0.23262576,85975.0,85973.0,0.03246]
[1765830377954,0.24425676,85976.0,85970.0,0.2462712]
[1765830377955,0.23263452,85972.0,85970.0,0.00199998]
[1765830378174,0.23263658,85971.0,85970.0,0.00099999]
[1765830379231,0.23263452,85972.0,85970.0,0.03345999]
[1765830379407,0.23263658,85971.0,85970.0,0.00299999]
[1765830380014,0.01163142,85974.0,85970.0,0.08554999]
[1765830380292,0.07397,85983.0,85970.0,0.08554999]
[1765830380293,0.24424041,85981.0,85977.0,0.01163101]
[1765830380479,0.24424925,85978.0,85975.0,0.04909]
[1765830380628,0.01163101,85977.0,85975.0,0.04909]
[1765830380832,0.01163101,85977.0,85975.0,0.28171567]
[1765830381263,0.24424284,85980.0,85976.0,0.28171042]
[1765830381612,0.24448912,85984.0,85981.0,0.24423829]
[1765830381823,0.00025603,85984.0,85983.0,0.04909]
[1765830382258,0.00025603,85984.0,85983.0,0.35431411]
[1765830382814,0.00025603,85984.0,85983.0,0.35592698]
[1765830383487,0.00025603,85984.0,85983.0,0.00161287]
[1765830383488,0.23285744,85984.0,85983.0,0.00161287]
[1765830383722,0.23260682,85982.0,85981.0,0.001]
[1765830383928,0.23262035,85977.0,85976.0,0.01852]
[1765830385409,0.23262035,85977.0,85976.0,0.01952]
[1765830385872,0.27983035,85977.0,85976.0,0.01952]
[1765830386097,0.27983035,85977.0,85976.0,0.001]
[1765830386668,0.35380035,85977.0,85976.0,0.002]
[1765830386864,0.45756396,85977.0,85976.0,0.002]
[1765830387259,0.35380035,85977.0,85976.0,0.002]
[1765830387464,0.35380035,85977.0,85976.0,0.001]
[1765830387714,0.23263658,85971.0,85970.0,0.02051998]
[1765830388123,0.27984658,85971.0,85970.0,0.01951999]
[1765830388259,0.23268283,85954.0,85952.0,0.23268752]
[1765830388460,0.01163399,85955.0,85953.0,0.01852]
[1765830388721,0.24431247,85956.0,85953.0,0.26283897]
[1765830388878,0.01163358,85958.0,85955.0,0.01163399]
[1765830389044,0.24430782,85958.0,85955.0,0.01163399]
[1765830389253,0.24430782,85958.0,85953.0,0.03176713]
[1765830389254,0.01163358,85958.0,85954.0,0.01163412]
[1765830389544,0.01163358,85958.0,85955.0,0.01163399]
[1765830389702,0.24430789,85958.0,85955.0,0.24431216]
[1765830389908,0.24430789,85958.0,85955.0,0.24431259]
[1765830390089,0.23266985,85959.0,85956.0,0.24431014]
[1765830390292,0.01163209,85969.0,85965.0,0.01163264]
[1765830390607,0.0367,85981.0,85970.0,0.01163196]
[1765830390608,0.01163142,85974.0,85970.0,0.01163196]
[1765830390931,0.24424959,85978.0,85974.0,0.23262846]
[1765830391093,0.23262039,85977.0,85974.0,0.28099846]
[1765830391440,0.23262444,85976.0,85974.0,0.06000142]
[1765830391651,0.2442514,85977.0,85974.0,0.04837]
[1765830391652,0.01163101,85977.0,85974.0,0.04837]
[1765830391815,0.23262576,85975.0,85974.0,0.04837]
[1765830392314,0.23262576,85975.0,85974.0,0.04937]
[1765830392644,0.23262576,85975.0,85970.0,0.01524481]
[1765830392645,0.23263454,85972.0,85970.0,0.00161287]
[1765830392845,0.23263658,85971.0,85970.0,0.00161287]
[1765830393298,0.23263658,85971.0,85970.0,0.03407287]
[1765830393707,0.23263658,85971.0,85970.0,0.00161287]
[1765830393908,0.23263658,85971.0,85970.0,0.03407287]
[1765830394066,0.0116325,85966.0,85963.0,0.01848]
[1765830394265,0.01163155,85973.0,85963.0,0.01848]
[1765830394266,0.03097223,85983.0,85979.0,0.01163074]
[1765830394490,0.01163047,85981.0,85978.0,0.23261506]
[1765830394803,0.24423686,85983.0,85979.0,0.01163074]
[1765830395145,0.24423686,85983.0,85977.0,0.24424604]
[1765830395146,0.01163034,85982.0,85977.0,0.01163101]
[1765830395346,0.01163101,85977.0,85974.0,0.06818]
[1765830395558,0.01163115,85976.0,85973.0,0.01848]
[1765830395793,0.01163088,85978.0,85973.0,0.03011155]
[1765830396112,0.23262295,85977.0,85974.0,0.24425881]
[1765830396513,0.23262295,85977.0,85974.0,0.24525881]
[1765830396730,0.23262576,85975.0,85974.0,0.001]
[1765830397128,0.23262846,85974.0,85973.0,0.01848]
[1765830398664,0.23262846,85974.0,85973.0,0.01948]
[1765830399418,0.23262846,85974.0,85973.0,0.001]
[1765830399801,0.23262846,85974.0,85973.0,0.002]
[1765830401551,0.23262846,85974.0,85973.0,0.001]
[1765830401759,0.23262846,85974.0,85973.0,0.002]
[1765830402135,0.23262846,85974.0,85973.0,0.001]
[1765830402544,0.23262846,85974.0,85973.0,0.002]
[1765830402948,0.23262846,85974.0,85973.0,0.001]
[1765830403496,0.23263929,85970.0,85969.0,0.03246]
[1765830403699,0.2326447,85968.0,85967.0,0.01848]
[1765830403892,0.2326447,85968.0,85952.0,0.03118701]
[1765830403893,0.01163291,85963.0,85952.0,0.03118701]
[1765830404099,0.23267989,85955.0,85954.0,0.01848]
[1765830404278,0.01163318,85961.0,85955.0,0.01163399]
[1765830404279,0.01163345,85959.0,85955.0,0.01163399]
[1765830404473,0.01163345,85959.0,85954.0,0.02009287]
[1765830404474,0.24431073,85957.0,85954.0,0.02009287]
[1765830404705,0.23267987,85956.0,85954.0,0.02009287]
[1765830405281,0.23267989,85955.0,85954.0,0.02309287]
[1765830405870,0.23267989,85955.0,85954.0,0.02509287]
[1765830406265,0.23267989,85955.0,85954.0,0.02309287]
[1765830406466,0.23267718,85956.0,85954.0,0.02009287]
[1765830406668,0.23267989,85955.0,85954.0,0.02509287]
[1765830407096,0.23267989,85955.0,85954.0,0.02209287]
[1765830407296,0.23267989,85955.0,85954.0,0.02509287]
[1765830407830,0.23267989,85955.0,85954.0,0.02148]
[1765830407831,0.29860989,85955.0,85954.0,0.02148]
[1765830408031,0.29860989,85955.0,85954.0,0.005]
[1765830408032,0.37246989,85955.0,85954.0,0.005]
[1765830408483,0.29860989,85955.0,85954.0,0.003]
[1765830408887,0.29860989,85955.0,85954.0,0.005]
[1765830409478,0.37246989,85955.0,85954.0,0.002]
[1765830409675,0.37246989,85955.0,85950.0,0.00199998]
[1765830409676,0.23269071,85951.0,85950.0,0.00199998]
[1765830409879,0.23269071,85951.0,85950.0,0.00099999]
[1765830410700,0.01163453,85951.0,85946.0,0.01163521]
[1765830410912,0.24432795,85951.0,85950.0,0.001]
[1765830411116,0.24432795,85951.0,85950.0,0.05015]
[1765830411247,0.24432795,85951.0,85950.0,0.001]
[1765830412645,0.24432795,85951.0,85950.0,0.002]
[1765830414123,0.2443164,85955.0,85952.0,0.23268577]
[1765830414363,0.23268766,85953.0,85951.0,0.04915]
[1765830414556,0.24431797,85954.0,85951.0,0.28184041]
[1765830414918,0.01163385,85956.0,85953.0,0.28183307]
[1765830415124,0.2443131,85956.0,85954.0,0.23268255]
[1765830415346,0.03097223,85979.0,85959.0,0.01163345]
[1765830415347,0.01163277,85964.0,85959.0,0.01163345]
[1765830415554,0.01163291,85963.0,85960.0,0.00199998]
[1765830415758,0.0116325,85966.0,85963.0,0.28180763]
[1765830415960,0.24428366,85966.0,85963.0,0.23265763]
[1765830416076,0.01163264,85965.0,85962.0,0.01163304]
[1765830416294,0.24427592,85969.0,85965.0,0.04915]
[1765830416498,0.23265282,85965.0,85962.0,0.00161287]
[1765830416719,0.23265823,85963.0,85962.0,0.00161287]
[1765830416990,0.23266094,85962.0,85960.0,0.02047998]
[1765830417188,0.23266094,85962.0,85960.0,0.01947999]
[1765830417189,0.23266364,85961.0,85960.0,0.01947999]
[1765830417953,0.23266094,85962.0,85960.0,0.06862999]
[1765830417954,0.23266279,85962.0,85960.0,0.06862999]
[1765830418161,0.23266279,85962.0,85961.0,0.04915]
[1765830418840,0.23266279,85962.0,85960.0,0.01947999]
[1765830419009,0.23266364,85961.0,85960.0,0.01947999]
[1765830419341,0.23266094,85962.0,85961.0,0.11733]
[1765830419549,0.23266094,85962.0,85961.0,0.04915]
[1765830419753,0.23266094,85962.0,85961.0,0.05015]
[1765830419998,0.23266364,85961.0,85960.0,0.01947999]
[1765830420375,0.23217583,85961.0,85960.0,0.02047999]
[1765830420587,0.23217583,85961.0,85960.0,0.01948]
[1765830420958,0.35129583,85961.0,85960.0,0.01948]
[1765830421529,0.35129583,85961.0,85960.0,0.01848]
[1765830422456,0.01163426,85953.0,85950.0,0.00099999]
[1765830422630,0.01163426,85953.0,85950.0,0.01163467]
[1765830423059,0.23269342,85950.0,85949.0,0.01848]
[1765830423207,0.23270425,85946.0,85944.0,0.03141703]
[1765830423412,0.23271508,85942.0,85940.0,0.01848]
[1765830423618,0.23271779,85941.0,85940.0,0.01848]
[1765830423858,0.23273404,85935.0,85934.0,0.03141703]
[1765830424004,0.01163467,85950.0,85941.0,0.01163588]
[1765830424206,0.24433025,85950.0,85944.0,0.23270806]
[1765830424438,0.03439,85953.0,85945.0,0.01163534]
[1765830424641,0.01163345,85959.0,85956.0,0.01163385]
[1765830424878,0.00496,85973.0,85972.0,0.23263388]
[1765830425079,0.00496,85973.0,85972.0,0.29796675]
[1765830425252,0.00496,85973.0,85972.0,0.36681675]
[1765830425475,0.00496,85973.0,85972.0,0.13418287]
[1765830425679,0.12781,85973.0,85972.0,0.01848]
[1765830426055,0.00496,85973.0,85972.0,0.02048]